bitfinex-derivatives/quotes_BTCF0:USTF0_20251103
["timestamp","ask_amount","ask_price","bid_price","bid_amount"]
[1762186111162,0.05998,105360.0,105350.0,0.13090113]
[1762186111365,0.42078,105360.0,105350.0,0.61038606]
[1762186111565,0.42078,105360.0,105350.0,0.70528522]
[1762186111764,0.48309,105360.0,105350.0,0.66506319]
[1762186111963,0.48309,105360.0,105350.0,0.45590812]
[1762186112260,0.48209,105360.0,105350.0,0.70528522]
[1762186112462,0.3598,105360.0,105350.0,0.80022812]
[1762186112770,0.42078,105370.0,105360.0,0.12556]
[1762186112964,0.42078,105370.0,105360.0,0.49082426]
[1762186113263,0.5780154,105370.0,105360.0,0.06278]
[1762186113466,0.5780154,105370.0,105360.0,0.19794493]
[1762186113662,0.3608,105370.0,105360.0,0.83514426]
[1762186113866,0.43278,105380.0,105370.0,0.12556]
[1762186114065,0.5900064,105380.0,105370.0,0.26072493]
[1762186114366,0.12229,105370.0,105360.0,0.4071]
[1762186114565,0.5780137,105370.0,105360.0,0.54226493]
[1762186114964,0.5780137,105370.0,105360.0,0.63719813]
[1762186114965,0.48309,105370.0,105360.0,0.63719813]
[1762186115165,0.5780142,105370.0,105360.0,0.54226493]
[1762186115368,0.3608,105370.0,105360.0,0.69997813]
[1762186115568,0.2172052,105380.0,105370.0,0.12556]
[1762186115871,0.6131352,105380.0,105370.0,0.47948493]
[1762186116061,0.6131352,105380.0,105370.0,0.34432]
[1762186116370,0.6131352,105380.0,105370.0,0.47948493]
[1762186116569,0.2523519,105360.0,105350.0,0.00534113]
[1762186116770,0.3608,105370.0,105360.0,0.12556]
[1762186116971,0.4938461,105380.0,105360.0,0.49078902]
[1762186117270,0.48309,105370.0,105360.0,0.2300731]
[1762186117471,0.48309,105370.0,105360.0,0.09490817]
[1762186117767,0.48309,105370.0,105350.0,0.34966113]
[1762186117768,0.48309,105370.0,105350.0,0.44460243]
[1762186117967,0.3598,105360.0,105350.0,0.47522113]
[1762186118162,0.3598,105360.0,105350.0,0.70529423]
[1762186118466,0.51722,105360.0,105350.0,0.1002493]
[1762186118667,0.51722,105360.0,105350.0,0.23541423]
[1762186118971,0.51722,105360.0,105350.0,0.29819423]
[1762186119362,0.51722,105360.0,105350.0,0.39289703]
[1762186120071,0.51722,105360.0,105350.0,0.2577321]
[1762186120265,0.51722,105360.0,105350.0,0.29795423]
[1762186120466,0.41978,105360.0,105350.0,0.45567663]
[1762186120669,0.07781,105380.0,105360.0,0.2557835]
[1762186120868,0.49759784,105420.0,105380.0,0.03529]
[1762186121074,0.51822,105400.0,105390.0,0.13516493]
[1762186121377,0.45591,105400.0,105390.0,0.23007103]
[1762186121674,0.3608,105400.0,105390.0,0.35563103]
[1762186121869,0.12229,105390.0,105380.0,0.3608]
[1762186122074,0.12229,105390.0,105350.0,0.00510113]
[1762186122075,0.15742,105380.0,105370.0,0.0949247]
[1762186122266,0.51822,105380.0,105360.0,0.93609263]
[1762186122466,0.15742,105380.0,105370.0,0.0949249]
[1762186122977,0.12229,105380.0,105370.0,0.5812849]
[1762186123170,0.48714629,105390.0,105370.0,0.23008523]
[1762186123475,0.48714629,105390.0,105380.0,0.0949164]
[1762186123664,0.48714629,105390.0,105370.0,0.18981916]
[1762186123865,0.48714629,105390.0,105380.0,0.0949163]
[1762186124167,0.48714629,105390.0,105370.0,0.0949185]
[1762186124466,0.39728,105380.0,105360.0,0.69669563]
[1762186124667,0.0987,105380.0,105370.0,0.13516493]
[1762186124866,0.0987,105380.0,105370.0,0.23009013]
[1762186124867,0.16281,105380.0,105370.0,0.23009013]
[1762186125178,0.20418629,105390.0,105380.0,0.0959162]
[1762186125368,0.20418629,105390.0,105380.0,0.23108113]
[1762186125564,0.29909349,105390.0,105380.0,0.13616493]
[1762186125774,0.65989349,105390.0,105380.0,0.13616493]
[1762186126075,0.65989349,105390.0,105380.0,0.23008113]
[1762186126279,0.56498629,105390.0,105380.0,0.35148113]
[1762186126570,0.65989349,105390.0,105380.0,0.23208113]
[1762186126770,0.65989349,105390.0,105380.0,0.13956493]
[1762186126964,0.29909349,105390.0,105380.0,0.13956493]
[1762186127162,0.56498629,105390.0,105380.0,0.23448073]
[1762186127367,0.56498629,105390.0,105380.0,0.1569958]
[1762186127572,0.20418629,105390.0,105380.0,0.29216073]
[1762186128382,0.20418629,105390.0,105380.0,0.35688073]
[1762186129075,0.65989309,105390.0,105380.0,0.14056493]
[1762186129273,0.07785629,105390.0,105380.0,0.39327073]
[1762186129473,0.08785,105410.0,105400.0,0.2162978]
[1762186129667,0.37153784,105420.0,105410.0,0.2162893]
[1762186129871,0.52863814,105420.0,105410.0,0.25656493]
[1762186130077,0.59274814,105420.0,105410.0,0.35145423]
[1762186130380,0.12633,105420.0,105410.0,0.35145423]
[1762186130582,0.12633,105420.0,105410.0,0.23005053]
[1762186130583,0.06222,105420.0,105410.0,0.23005053]
[1762186130771,0.06222,105420.0,105410.0,0.28773053]
[1762186130971,0.455676,105430.0,105420.0,0.0948799]
[1762186131174,0.59273081,105430.0,105420.0,0.13516493]
[1762186132377,0.2576906,105420.0,105410.0,0.152568]
[1762186132584,0.48713,105420.0,105410.0,0.25656493]
[1762186132777,0.45129481,105430.0,105420.0,0.2162799]
[1762186133081,0.51151481,105430.0,105420.0,0.2162799]
[1762186133386,0.07977,105430.0,105420.0,0.6123699]
[1762186133677,0.08782,105440.0,105430.0,0.216271]
[1762186133878,0.15004,105440.0,105430.0,0.25656493]
[1762186134085,0.57495,105440.0,105430.0,0.25656493]
[1762186134277,0.08782,105440.0,105430.0,0.35143593]
[1762186134488,0.08782,105440.0,105430.0,0.44628109]
[1762186134781,0.21415,105440.0,105430.0,0.44628109]
[1762186134982,0.21415,105440.0,105430.0,0.35141009]
[1762186135184,0.6698117,105440.0,105430.0,0.25656493]
[1762186136079,0.6421861,105440.0,105430.0,0.13516493]
[1762186136380,0.08782,105440.0,105430.0,0.80708079]
[1762186136684,0.62143,105440.0,105430.0,0.001]
[1762186136985,0.62143,105440.0,105430.0,0.13616493]
[1762186137192,0.7162922,105440.0,105430.0,0.13616493]
[1762186137392,0.7162922,105440.0,105430.0,0.001]
[1762186137680,0.22415,105440.0,105430.0,0.25756493]
[1762186137890,0.22415,105440.0,105430.0,0.35243573]
[1762186138782,0.26063,105440.0,105430.0,0.001]
[1762186138983,0.3554917,105440.0,105430.0,0.13616493]
[1762186139189,0.16004,105440.0,105430.0,0.35243563]
[1762186139385,0.26063,105440.0,105430.0,0.001]
[1762186139684,0.76886803,105440.0,105430.0,0.001]
[1762186140079,0.77186803,105440.0,105430.0,0.001]
[1762186140279,0.62443,105440.0,105430.0,0.13616493]
[1762186140476,0.62443,105440.0,105430.0,0.25756493]
[1762186140477,0.7192917,105440.0,105430.0,0.25756493]
[1762186140675,0.7192917,105440.0,105430.0,0.13616493]
[1762186141177,0.77186803,105440.0,105430.0,0.001]
[1762186141784,0.77186803,105440.0,105430.0,0.13616493]
[1762186142386,0.67700633,105440.0,105430.0,0.13616493]
[1762186142690,0.10082,105440.0,105430.0,1.19520056]
[1762186142898,0.10082,105440.0,105430.0,1.52716572]
[1762186143389,0.10082,105440.0,105430.0,1.15488079]
[1762186143889,0.10082,105440.0,105430.0,1.52716572]
[1762186144084,0.08076,105450.0,105440.0,0.2526517]
[1762186144085,0.03076,105450.0,105440.0,0.2526517]
[1762186144387,0.3608,105470.0,105460.0,0.1525237]
[1762186144591,1.5,105480.0,105470.0,0.2162347]
[1762186144889,0.12933,105490.0,105480.0,0.0948258]
[1762186145094,0.49013,105490.0,105480.0,0.27032986]
[1762186145285,0.5849469,105490.0,105480.0,0.13516493]
[1762186145490,0.5849469,105490.0,105480.0,0.48172493]
[1762186145687,0.49013,105490.0,105480.0,0.34656]
[1762186145881,0.5849469,105490.0,105480.0,0.48172493]
[1762186146488,0.62403621,105490.0,105480.0,0.34656]
[1762186146689,0.2211732,105470.0,105460.0,0.13516493]
[1762186146893,0.2576594,105460.0,105450.0,0.13516493]
[1762186147085,0.16281,105440.0,105430.0,9.231e-05]
[1762186147290,0.16281,105440.0,105430.0,0.23012814]
[1762186147692,0.06222,105440.0,105430.0,0.35152814]
[1762186147892,0.56489,105450.0,105440.0,0.0948619]
[1762186148200,0.20409,105450.0,105440.0,0.28770683]
[1762186148396,0.6597429,105450.0,105440.0,0.13516493]
[1762186148693,0.20409,105450.0,105440.0,0.48659176]
[1762186148888,0.13998,105450.0,105440.0,0.58142793]
[1762186149090,0.13998,105450.0,105440.0,0.94222793]
[1762186149497,0.07776,105450.0,105440.0,0.97861793]
[1762186150294,0.53161,105480.0,105470.0,0.0948347]
[1762186150491,0.16281,105480.0,105470.0,0.22999963]
[1762186151196,0.16281,105480.0,105470.0,0.64847963]
[1762186151398,0.16281,105480.0,105470.0,0.28767963]
[1762186151695,0.52361,105480.0,105470.0,0.13516493]
[1762186151899,0.52361,105480.0,105470.0,0.22999973]
[1762186152099,0.52761,105480.0,105470.0,0.22999973]
[1762186152293,0.12633,105470.0,105460.0,0.4410838]
[1762186152492,0.004,105480.0,105470.0,0.31104399]
[1762186152694,0.004,105480.0,105470.0,1.01194945]
[1762186152899,0.01787,105490.0,105480.0,0.1525058]
[1762186153096,0.01787,105490.0,105480.0,1.15206045]
[1762186153488,0.01787,105490.0,105480.0,1.48386065]
[1762186153693,0.44856,105510.0,105500.0,0.41408245]
[1762186153899,0.48713,105510.0,105500.0,0.76000235]
[1762186154191,0.3608,105510.0,105500.0,0.85480255]
[1762186154387,0.3608,105510.0,105500.0,0.88613255]
[1762186154591,1.8608,105520.0,105510.0,0.2135987]
[1762186154794,1.8955,105520.0,105510.0,0.19787465]
[1762186154995,0.12387,105510.0,105490.0,0.19787465]
[1762186155191,0.42211,105500.0,105490.0,0.35209135]
[1762186155393,0.48467,105500.0,105490.0,0.60307465]
[1762186155593,1.5347,105520.0,105510.0,0.0594]
[1762186155800,1.8955,105520.0,105510.0,0.41147345]
[1762186155998,0.01,105520.0,105510.0,0.75723345]
[1762186156597,0.01,105520.0,105510.0,1.11803345]
[1762186156790,0.003,105530.0,105510.0,1.4497267]
[1762186156995,0.08774,105540.0,105530.0,0.2135808]
[1762186157196,0.18774,105540.0,105530.0,0.82524]
[1762186157401,0.18774,105540.0,105530.0,1.02311465]
[1762186157600,0.1,105540.0,105530.0,0.75706994]
[1762186157905,0.3608,105550.0,105530.0,0.75706994]
[1762186158201,0.48467,105550.0,105530.0,0.44039529]
[1762186158404,0.3608,105550.0,105540.0,0.44783645]
[1762186158706,0.42211,105560.0,105550.0,0.1188]
[1762186158906,0.48467,105560.0,105550.0,0.66219465]
[1762186159309,0.51937,105560.0,105550.0,0.54339465]
[1762186159809,0.61937,105560.0,105550.0,0.54339465]
[1762186160404,0.7141221,105560.0,105550.0,0.54339465]
[1762186160600,0.7141221,105560.0,105550.0,0.34552]
[1762186160801,0.12387,105540.0,105530.0,0.001]
[1762186161002,0.5794409,105540.0,105530.0,0.3464]
[1762186161310,0.15857,105520.0,105510.0,0.19787465]
[1762186161505,0.6141592,105520.0,105510.0,0.54323465]
[1762186161705,0.06131,105510.0,105500.0,0.34548842]
[1762186162010,0.12387,105510.0,105500.0,1.11777017]
[1762186162309,0.15857,105520.0,105510.0,0.0947988]
[1762186162515,0.15857,105520.0,105510.0,0.65347345]
[1762186162814,0.12387,105530.0,105520.0,0.0947852]
[1762186163011,0.12387,105530.0,105520.0,0.69745985]
[1762186163225,0.48467,105530.0,105520.0,0.60267465]
[1762186163413,0.48467,105530.0,105520.0,0.54327465]
[1762186163614,0.52437,105540.0,105530.0,0.0947795]
[1762186163914,0.52437,105540.0,105530.0,0.29265415]
[1762186164116,0.12887,105540.0,105530.0,0.35205415]
[1762186164313,0.51937,105560.0,105550.0,0.0947612]
[1762186164613,0.51937,105560.0,105550.0,0.19787465]
[1762186165011,0.6141235,105560.0,105550.0,0.19787465]
[1762186165212,0.12387,105550.0,105540.0,0.63784605]
[1762186165412,0.12387,105550.0,105540.0,0.54307465]
[1762186165607,0.4555125,105550.0,105540.0,0.54307465]
[1762186165806,0.5794325,105550.0,105540.0,0.3452]
[1762186166603,0.60214834,105550.0,105540.0,0.3452]
[1762186166819,0.5794325,105550.0,105540.0,0.3452]
[1762186167010,0.62814301,105550.0,105540.0,0.3462]
[1762186167210,0.6054325,105550.0,105540.0,0.3462]
[1762186167814,0.51067,105550.0,105540.0,0.4409708]
[1762186168023,0.51067,105550.0,105540.0,0.29364545]
[1762186168211,0.14987,105550.0,105540.0,0.29364545]
[1762186168516,0.14987,105550.0,105540.0,0.31671465]
[1762186168712,0.14987,105550.0,105540.0,0.66131465]
[1762186168913,0.14987,105550.0,105540.0,0.75608715]
[1762186169109,0.14987,105550.0,105540.0,0.4403725]
[1762186169314,0.14987,105550.0,105540.0,0.63824715]
[1762186169514,0.6054334,105550.0,105540.0,0.54347465]
[1762186169719,0.62816004,105550.0,105540.0,0.54347465]
[1762186169915,0.53339664,105550.0,105540.0,0.54347465]
[1762186170118,0.62816014,105550.0,105540.0,0.3456]
[1762186171109,0.6054334,105550.0,105540.0,0.4403724]
[1762186171314,0.6054334,105550.0,105540.0,0.54347465]
[1762186171520,0.62817288,105550.0,105540.0,0.54347465]
[1762186171719,0.62817288,105550.0,105540.0,0.3456]
[1762186172329,0.17260948,105550.0,105540.0,0.69703715]
[1762186172620,0.51067,105550.0,105540.0,0.69703715]
[1762186172825,0.62699141,105550.0,105540.0,0.54347465]
[1762186173120,0.62699141,105550.0,105540.0,0.3456]
[1762186173324,0.53222791,105550.0,105540.0,0.63824715]
[1762186173520,0.53222791,105550.0,105540.0,0.75547715]
[1762186173927,0.17142791,105550.0,105540.0,0.75547715]
[1762186174319,0.026,105550.0,105540.0,1.11627715]
[1762186174720,0.1385,105550.0,105540.0,1.11627715]
[1762186175721,0.52209186,105550.0,105540.0,0.75547715]
[1762186175921,0.61685536,105550.0,105540.0,0.3456]
[1762186176227,0.61685536,105550.0,105540.0,0.54347465]
[1762186176525,0.52209186,105550.0,105540.0,0.63824735]
[1762186176722,0.61685556,105550.0,105540.0,0.63824735]
[1762186176922,0.52209186,105550.0,105540.0,0.63824735]
[1762186177127,0.52209186,105550.0,105540.0,0.69703735]
[1762186177325,0.61685566,105550.0,105540.0,0.60226465]
[1762186177521,0.61685566,105550.0,105540.0,0.54347465]
[1762186178032,0.61685566,105550.0,105540.0,0.63824745]
[1762186178231,0.52209186,105550.0,105540.0,0.75547745]
[1762186178525,0.16129186,105550.0,105540.0,0.75547745]
[1762186178922,0.61685536,105550.0,105540.0,0.75547745]
[1762186179131,0.61685536,105550.0,105540.0,0.66070465]
[1762186179429,0.61685536,105550.0,105540.0,0.63824705]
[1762186179623,0.61685536,105550.0,105540.0,0.54347465]
[1762186179925,0.85373536,105550.0,105540.0,0.3456]
[1762186180127,0.64138362,105550.0,105540.0,0.3456]
[1762186180322,0.64138362,105550.0,105540.0,0.4403723]
[1762186180628,0.64138362,105550.0,105540.0,0.3456]
[1762186181725,0.69710536,105550.0,105540.0,0.001]
[1762186182028,0.66430539,105550.0,105540.0,0.001]
[1762186182231,0.66430539,105550.0,105540.0,0.0957725]
[1762186182527,0.66430539,105550.0,105540.0,0.29364715]
[1762186182726,0.56954189,105550.0,105540.0,0.29364715]
[1762186182931,0.57942009,105550.0,105540.0,0.41087715]
[1762186183320,0.54662012,105550.0,105540.0,0.41087715]
[1762186183526,0.18582012,105550.0,105540.0,0.41087715]
[1762186183728,0.54662012,105550.0,105540.0,0.41087715]
[1762186183928,0.16129186,105550.0,105540.0,0.41087715]
[1762186184126,0.10527186,105550.0,105540.0,0.41087715]
[1762186184324,0.04879186,105550.0,105540.0,0.41087715]
[1762186184834,0.04879186,105550.0,105540.0,0.43713715]
[1762186185134,0.07332012,105550.0,105540.0,0.43713715]
[1762186185328,0.64536342,105550.0,105540.0,0.41087715]
[1762186185527,0.64536342,105550.0,105540.0,0.31610465]
[1762186186427,0.64536342,105550.0,105540.0,0.25766465]
[1762186187122,0.61936342,105550.0,105540.0,0.05879]
[1762186187427,0.61936342,105550.0,105540.0,0.004]
[1762186187428,0.6535569,105550.0,105540.0,0.004]
[1762186188033,0.05999,105530.0,105520.0,0.74984495]
[1762186188235,0.08278186,105530.0,105520.0,1.11064495]
[1762186188428,0.05999,105530.0,105520.0,1.11064495]
[1762186188740,0.6041434,105540.0,105530.0,0.1131]
[1762186188938,0.62688221,105540.0,105530.0,0.40575595]
[1762186189135,0.17130881,105540.0,105530.0,0.40575595]
[1762186189335,0.08272881,105540.0,105530.0,0.40575595]
[1762186190343,0.02973881,105540.0,105530.0,0.76655595]
[1762186190637,0.02973881,105540.0,105530.0,0.86131124]
[1762186190837,0.02973881,105540.0,105530.0,0.86531124]
[1762186191235,0.02673881,105540.0,105530.0,0.86531124]
[1762186192141,0.02673881,105540.0,105530.0,0.87581759]
[1762186192835,0.02673881,105540.0,105530.0,0.87381759]
[1762186193246,0.004,105540.0,105530.0,0.87381759]
[1762186193546,0.02476433,105560.0,105550.0,0.2078634]
[1762186193841,0.39952522,105570.0,105560.0,0.2390944]
[1762186194149,0.41133015,105570.0,105560.0,0.78096905]
[1762186194337,0.38656582,105570.0,105560.0,0.78096905]
[1762186195344,0.44655582,105570.0,105560.0,0.5518544]
[1762186195543,0.59779122,105570.0,105560.0,0.65497465]
[1762186195740,0.62255555,105570.0,105560.0,0.65497465]
[1762186195936,0.2112433,105550.0,105540.0,0.25385465]
[1762186196245,0.23400912,105550.0,105540.0,0.31097465]
[1762186196841,0.13924582,105550.0,105540.0,0.40574695]
[1762186197031,0.02276582,105550.0,105540.0,0.76654695]
[1762186197237,0.02276582,105550.0,105540.0,0.79280695]
[1762186197441,0.02676582,105550.0,105540.0,0.79280695]
[1762186197633,0.14324582,105550.0,105540.0,0.2078723]
[1762186197939,0.14324582,105550.0,105540.0,0.40574695]
[1762186198240,0.02676582,105550.0,105540.0,0.76654695]
[1762186198437,0.02676582,105550.0,105540.0,0.88755326]
[1762186198839,0.004,105550.0,105540.0,0.95546939]
[1762186199037,0.004,105550.0,105540.0,1.19234939]
[1762186199440,0.004,105550.0,105540.0,1.12643326]
[1762186199648,0.004,105550.0,105540.0,0.88955326]
[1762186199939,0.3638,105570.0,105560.0,0.2078544]
[1762186199940,0.48028,105570.0,105560.0,0.2078544]
[1762186200147,0.48028,105570.0,105560.0,0.40572905]
[1762186200538,0.5750254,105570.0,105560.0,0.1131]
[1762186200734,0.2112343,105560.0,105550.0,0.65489465]
[1762186200940,0.6041243,105560.0,105550.0,0.59777465]
[1762186201145,0.2112436,105550.0,105540.0,0.19987465]
[1762186201445,0.47728,105550.0,105540.0,0.40774725]
[1762186202038,0.05999,105550.0,105540.0,0.40774725]
[1762186202238,0.6041302,105560.0,105550.0,0.05598]
[1762186202438,0.6041302,105560.0,105550.0,0.25385465]
[1762186202741,0.11648,105550.0,105540.0,0.40574695]
[1762186203143,0.2112433,105550.0,105540.0,0.31097465]
[1762186203337,0.47728,105550.0,105540.0,0.40574695]
[1762186203743,0.007,105560.0,105550.0,0.2078633]
[1762186203944,0.007,105560.0,105550.0,1.11041795]
[1762186204444,0.007,105560.0,105550.0,1.20516426]
[1762186204643,0.003,105570.0,105560.0,0.2390945]
[1762186204951,0.003,105570.0,105560.0,0.79776915]
[1762186205150,0.003,105570.0,105560.0,0.34221465]
[1762186205351,0.0977453,105570.0,105560.0,0.31097465]
[1762186205552,0.42379,105570.0,105560.0,0.40572895]
[1762186205847,0.11648,105560.0,105550.0,1.01565465]
[1762186206037,0.11648,105560.0,105550.0,1.11041795]
[1762186206243,0.5750253,105570.0,105560.0,0.1131]
[1762186206436,0.48028,105570.0,105560.0,0.40572895]
[1762186206654,0.5750253,105570.0,105560.0,0.40572895]
[1762186206850,0.5750253,105570.0,105560.0,0.31097465]
[1762186207245,0.5750253,105570.0,105560.0,0.1131]
[1762186207441,0.003,105570.0,105560.0,0.89250629]
[1762186208052,0.006,105570.0,105560.0,0.69463164]
[1762186208262,0.4902238,105600.0,105560.0,0.69463164]
[1762186208263,0.51198,105600.0,105590.0,0.0947274]
[1762186208445,0.5226549,105600.0,105590.0,0.40570205]
[1762186208646,0.51198,105600.0,105590.0,0.40570205]
[1762186208840,2.01198,105600.0,105590.0,0.40570205]
[1762186209050,2.01198,105600.0,105590.0,0.31097465]
[1762186209449,2.1296984,105600.0,105590.0,0.31197465]
[1762186209656,2.13916125,105600.0,105590.0,0.001]
[1762186209949,2.14216125,105600.0,105590.0,0.001]
[1762186210349,2.04744285,105600.0,105590.0,0.0957274]
[1762186210653,2.15259092,105600.0,105590.0,0.001]
[1762186210856,0.11648,105570.0,105560.0,0.40572895]
[1762186211053,0.47728,105570.0,105560.0,0.40572895]
[1762186211351,0.3608,105570.0,105560.0,0.40572895]
[1762186211556,1.57112967,105600.0,105580.0,0.2078366]
[1762186211557,0.05999,105590.0,105580.0,0.2078366]
[1762186211749,1.56812967,105600.0,105590.0,0.2078277]
[1762186211946,0.023,105600.0,105590.0,1.11026235]
[1762186212146,0.023,105600.0,105590.0,1.44175071]
[1762186212348,0.01673624,105600.0,105590.0,1.44175071]
[1762186212654,0.003,105610.0,105600.0,0.2377284]
[1762186212858,0.003,105610.0,105600.0,0.79640305]
[1762186213158,0.003,105610.0,105600.0,0.8911045]
[1762186213349,0.48028,105610.0,105600.0,0.5003945]
[1762186213655,0.5749894,105610.0,105600.0,0.4056761]
[1762186213851,0.48028,105610.0,105600.0,0.40569305]
[1762186214052,0.11948,105610.0,105600.0,0.40569305]
[1762186214555,0.2141894,105610.0,105600.0,0.38219116]
[1762186214742,0.2141894,105610.0,105590.0,0.70456]
[1762186214743,0.13403,105600.0,105570.0,0.3609204]
[1762186214943,0.4159,105590.0,105580.0,0.5401063]
[1762186215356,0.4159,105590.0,105580.0,0.10169]
[1762186215553,0.0551,105580.0,105570.0,0.540232]
[1762186215767,0.46397,105590.0,105580.0,0.1964263]
[1762186216157,0.46397,105590.0,105580.0,0.33097188]
[1762186216455,0.46397,105590.0,105580.0,0.1964263]
[1762186216660,0.5586974,105590.0,105580.0,0.23623558]
[1762186216856,0.5586974,105590.0,105570.0,0.3438004]
[1762186217060,0.2287866,105560.0,105550.0,0.13454558]
[1762186217360,0.96065946,105560.0,105550.0,0.13454558]
[1762186217556,0.96065946,105560.0,105550.0,0.18788558]
[1762186217860,0.86590286,105560.0,105550.0,0.18788558]
[1762186218057,0.1979333,105550.0,105540.0,0.47818558]
[1762186218361,0.10317,105530.0,105520.0,0.23634287]
[1762186218563,0.5587514,105530.0,105520.0,0.23634287]
[1762186218747,0.9195514,105530.0,105520.0,0.13465287]
[1762186218956,0.1979694,105510.0,105500.0,0.00312781]
[1762186219260,0.83528289,105510.0,105500.0,0.23248159]
[1762186219460,0.83528289,105510.0,105500.0,0.00312781]
[1762186219661,0.82477,105510.0,105500.0,0.23248159]
[1762186219964,0.82477,105510.0,105500.0,0.13767339]
[1762186219965,0.8248572,105510.0,105500.0,0.13767339]
[1762186220161,0.83526423,105510.0,105500.0,0.23248159]
[1762186220361,0.4640572,105510.0,105500.0,0.23248159]
[1762186220666,0.4640572,105510.0,105500.0,0.40208772]
[1762186220865,0.0279472,105520.0,105510.0,0.1481392]
[1762186221162,0.4919172,105520.0,105510.0,0.13454558]
[1762186221758,0.4919172,105520.0,105510.0,0.22934478]
[1762186221960,0.49203126,105520.0,105510.0,0.22934478]
[1762186222754,0.13123126,105520.0,105510.0,0.22934478]
[1762186222962,0.00011406,105520.0,105510.0,0.33103478]
[1762186223272,0.45907006,105520.0,105510.0,0.23623558]
[1762186223572,0.4159,105530.0,105520.0,0.1481304]
[1762186223866,0.4159,105530.0,105510.0,0.06791613]
[1762186223867,0.10317,105520.0,105510.0,0.06791613]
[1762186224164,0.46397,105530.0,105520.0,0.0947819]
[1762186224464,0.10317,105530.0,105520.0,0.46556306]
[1762186224651,0.0551,105530.0,105520.0,0.46556306]
[1762186224850,0.47458643,105540.0,105530.0,0.1964713]
[1762186225154,0.46397,105550.0,105540.0,0.0947723]
[1762186225353,0.10317,105550.0,105540.0,0.69180788]
[1762186225555,0.0551,105560.0,105550.0,0.1964533]
[1762186225757,0.0551,105560.0,105550.0,0.69179888]
[1762186226262,0.3608,105570.0,105560.0,0.1964443]
[1762186226567,0.3608,105580.0,105570.0,0.1964353]
[1762186226759,0.3608,105590.0,105570.0,0.33098088]
[1762186226960,0.46397,105590.0,105580.0,0.13454558]
[1762186227762,0.0975,105570.0,105560.0,0.34368]
[1762186227956,0.0975,105570.0,105560.0,0.47822558]
[1762186228161,0.0975,105570.0,105560.0,0.52531558]
[1762186228562,0.0975,105570.0,105560.0,0.75461566]
[1762186228865,0.39014,105580.0,105560.0,0.75461566]
[1762186228866,0.4965364,105600.0,105580.0,0.1919466]
[1762186229064,0.4993136,105600.0,105590.0,0.13454558]
[1762186229263,0.5940322,105600.0,105590.0,0.13454558]
[1762186229473,0.0975,105590.0,105580.0,0.3436]
[1762186229661,0.5530276,105590.0,105580.0,0.3436]
[1762186229861,0.5530276,105590.0,105580.0,0.47814558]
[1762186230165,0.04751,105590.0,105580.0,1.12559363]
[1762186230372,0.3638,105610.0,105590.0,0.1919376]
[1762186230571,0.003,105610.0,105600.0,0.46101976]
[1762186230863,0.003,105610.0,105600.0,1.16541976]
[1762186231068,0.003,105610.0,105600.0,1.28978018]
[1762186231863,0.01052178,105630.0,105620.0,0.1919106]
[1762186232168,0.48916,105640.0,105630.0,0.09721]
[1762186232358,2.01131189,105640.0,105630.0,0.23175558]
[1762186232563,2.01131189,105640.0,105630.0,0.32644728]
[1762186232765,1.65051189,105640.0,105630.0,0.32644728]
[1762186233461,1.75551593,105640.0,105630.0,0.13454558]
[1762186233769,0.02215189,105640.0,105630.0,0.32644728]
[1762186234462,0.02215189,105640.0,105630.0,0.23175558]
[1762186234662,0.02215189,105640.0,105630.0,0.32644738]
[1762186235166,1.8638,105650.0,105640.0,0.1918928]
[1762186235362,1.52513352,105650.0,105640.0,0.80446396]
[1762186235562,1.88593352,105650.0,105640.0,0.73214116]
[1762186235766,1.88593352,105650.0,105640.0,0.80443779]
[1762186235767,1.52513352,105650.0,105640.0,0.80443779]
[1762186235970,1.88593352,105650.0,105640.0,0.89912049]
[1762186236165,0.38556433,105670.0,105660.0,0.09721]
[1762186236466,0.38556433,105670.0,105660.0,0.59341558]
[1762186236669,1.88556433,105670.0,105660.0,0.57519558]
[1762186236874,1.98022013,105670.0,105660.0,0.47798558]
[1762186237166,1.88556433,105670.0,105660.0,0.66986038]
[1762186237371,0.3608,105670.0,105660.0,0.76449909]
[1762186237672,0.3608,105670.0,105660.0,0.76449919]
[1762186238293,0.4583,105670.0,105660.0,0.66983429]
[1762186238572,0.3608,105670.0,105660.0,0.66986038]
[1762186238771,0.3608,105670.0,105660.0,0.76449909]
[1762186238971,0.4583,105670.0,105660.0,0.66983429]
[1762186239172,0.5529558,105670.0,105660.0,0.13454558]
[1762186239367,0.3608,105670.0,105660.0,0.42105909]
[1762186239767,0.3758,105670.0,105660.0,0.32639429]
[1762186239965,0.4733,105670.0,105660.0,0.32639429]
[1762186240166,0.4733,105670.0,105660.0,0.09721]
[1762186240374,0.4783,105670.0,105660.0,0.32642038]
[1762186241577,0.42831,105670.0,105660.0,0.32642038]
[1762186242171,0.3808,105670.0,105660.0,0.43927909]
[1762186242475,0.3658,105670.0,105660.0,0.43927909]
[1762186243171,0.3658,105670.0,105660.0,0.78251909]
[1762186243470,0.3608,105670.0,105660.0,0.78251909]
[1762186243775,0.3698,105670.0,105660.0,0.78451909]
[1762186243975,0.3698,105670.0,105660.0,0.76629909]
[1762186244176,0.3698,105670.0,105660.0,1.02111909]
[1762186244569,0.3698,105670.0,105660.0,0.78251909]
[1762186244770,0.3728,105670.0,105660.0,0.78251909]
[1762186245768,0.3728,105670.0,105660.0,0.76429909]
[1762186247872,0.3728,105670.0,105660.0,0.77489909]
[1762186248780,0.41997,105670.0,105660.0,0.76429909]
[1762186248979,0.3608,105680.0,105670.0,0.1901158]
[1762186249277,0.38226164,105680.0,105670.0,0.32466138]
[1762186249473,0.50426164,105680.0,105670.0,0.32464429]
[1762186249780,0.59890854,105680.0,105670.0,0.32464429]
[1762186250371,0.50826164,105680.0,105670.0,0.41930079]
[1762186250581,0.1879265,105670.0,105660.0,0.39042]
[1762186250775,0.5487265,105670.0,105660.0,0.52496558]
[1762186250975,0.04717,105670.0,105660.0,1.02871108]
[1762186251182,0.09327,105670.0,105660.0,1.02871108]
[1762186251974,0.5487261,105670.0,105660.0,0.34324]
[1762186252277,0.2166651,105660.0,105650.0,0.141852]
[1762186252476,0.09327,105650.0,105640.0,0.94479643]
[1762186252680,0.09327,105650.0,105640.0,1.03943514]
[1762186252879,0.122,105640.0,105630.0,0.55348583]
[1762186253071,0.122,105640.0,105630.0,0.60177203]
[1762186253274,0.2166816,105640.0,105630.0,0.28001328]
[1762186253482,0.4828,105640.0,105630.0,0.22923698]
[1762186253680,0.4808,105640.0,105630.0,0.28005701]
[1762186253873,0.118,105640.0,105630.0,0.64085701]